Cogmind - Beta 13 @@@ ROGUE MODE // 2024.06.15 @ 04:15:57 Player: Shippujinlai Result: Destroyed by S-10 Pest with Light Assault Rifle Performance ------------- Evolutions (0) 0 Regions Visited (2) 400 Robots Destroyed (24) 120 Value Destroyed (621) 621 Prototype IDs (0) 0 Alien Tech Used (0) 0 Bonus (0) 0 TOTAL SCORE: 1141 Bonus ------- None Cogmind --------- Core Integrity 0/250 Matter 273/300 Energy 100/100 System Corruption 0% Temperature Cool (0) Movement Core (100) Ox1 Location -10/Mines Parts ------- > --- POWER (1) -------- (None) > --- PROPULSION (2) --- (None) > --- UTILITY (2) ------ Small Storage Unit Transport Network Coupler > --- WEAPON (2) ------- (None) > --- INVENTORY (8) ---- Ion Engine Compact Wheel Hacking Suite Peak State ------------ > --- POWER ------------ Light Nuclear Core > --- PROPULSION ------- Light Treads Light Treads > --- UTILITY ---------- Small Storage Unit Machine Analyzer > --- WEAPON ----------- Autogun Autogun > --- INVENTORY -------- Ion Engine Wheel Compact Wheel Autogun Autogun [Rating: 13] Favorites ----------- Power Light Nuclear Core Engine Light Ion Engine Power Core Light Nuclear Core Propulsion Aluminum Leg Treads Light Treads Leg Aluminum Leg Wheel Compact Wheel Utility Small Storage Unit Storage Small Storage Unit Processor Machine Analyzer Weapon Autogun Energy Gun Medium Laser Ballistic Gun Autogun Build | -11 -10 -10 ------- Run | Yrd Mat Min Slots Evolved . | . . . Power . | . . . Propulsion . | . . . Utility . | . . . Weapon . | . . . Parts Attached 23 | 7 14 2 Power 3 | 1 2 . Engine 1 | 1 . . Core 2 | . 2 . Reactor . | . . . Propulsion 9 | 2 5 2 Treads 2 | 2 . . Leg 5 | . 5 . Wheel 2 | . . 2 Hover . | . . . Flight . | . . . Utility 3 | 1 2 . Device . | . . . Storage 1 | 1 . . Processor 2 | . 2 . Hackware . | . . . Protection . | . . . Artifact . | . . . Weapon 8 | 3 5 . Energy Gun 2 | 2 . . Energy Cannon . | . . . Ballistic Gun 6 | 1 5 . Ballistic Cannon . | . . . Launcher . | . . . Special Weapon . | . . . Impact Weapon . | . . . Slashing Weapon . | . . . Piercing Weapon . | . . . Special Melee Weapon . | . . . Unidentified Prototypes . | . . . Parts Lost 12 | . 6 6 Power 2 | . 1 1 Propulsion 6 | . 3 3 Utility . | . . . Weapon 4 | . 2 2 Highest Loss Streak 7 | . 5 7 To Critical Strikes . | . . . Average Slot Usage (%) 89 | . 90 65 Engine 1 | . 1 . Core 12 | . 12 8 Treads 8 | . 8 . Leg 17 | . 18 2 Storage 14 | . 14 14 Processor 7 | . 7 14 Ballistic Gun 26 | . 27 11 Naked Turns . | . . . Heaviest Build 16 | 12 16 10 Greatest Support 40 | 40 40 32 Greatest Overweight (x) 2 | . 2 . Average Overweight (x) . | . . . Largest Inventory Capacity 8 | 8 8 8 Average Capacity 7 | 6 8 8 Most Carried 5 | 3 5 5 Average Carried 3 | 1 3 3 Final Capacity 8 | 8 8 8 Final Carried 5 | 3 5 3 Class Distribution -------------------- 73% | Mutant 26% | Scavenger-Mutant Dominant Class ---------------- Mutant | -10/Materials Mutant | -10/Mines Resources | -11 -10 -10 ----------- Run | Yrd Mat Min Matter Collected 976 | 199 777 . Remotely . | . . . Salvage Created 902 | . 902 . Parts 59 | . 59 . Haulers Intercepted 2 | . 2 . Recyclers Shooed 1 | . 1 . Parts Field Recycled . | . . . Retrieved Matter . | . . . Parts Self-Destructed . | . . . Prevented . | . . . Kills | -11 -10 -10 ------- Run | Yrd Mat Min Combat Hostiles Destroyed 14 | . 14 . Guns 14 | . 14 . Classes Destroyed 8 | . 8 . Worker 1 | . 1 . Builder 1 | . 1 . Hauler 2 | . 2 . Recycler 1 | . 1 . Mechanic 1 | . 1 . Operator 1 | . 1 . Watcher 3 | . 3 . Grunt 14 | . 14 . Best Kill Streak 3 | . 3 . Combat Bots Only 3 | . 3 . Max Kills in Single Turn 2 | . 2 . Gunslinging . | . . . Exploded . | . . . Melee . | . . . Uniques/NPCs Destroyed . | . . . Combat | -11 -10 -10 -------- Run | Yrd Mat Min Hostile Shots Fired 156 | . 109 47 Missed 50 | . 38 12 Damage Taken 1300 | . 889 411 Core 255 | . 124 131 Absorbed by Shields . | . . . Core Remaining (%) 100 | 100 . . Volleys Fired 86 | . 78 8 Largest 2 | . 2 2 Hottest 46 | . 46 46 Shots Fired 166 | . 152 14 Gun 166 | . 152 14 Cannon . | . . . Launcher . | . . . Special . | . . . Kinetic 166 | . 152 14 Thermal . | . . . Explosive . | . . . Electromagnetic . | . . . Robot Hit Streak 9 | . 9 4 Robot Miss Streak 4 | . 4 3 Penetration Max . | . . . Secondary Targets 3 | . 3 . Max Gunslinging Chain 1 | . 1 . Shots Hit Robots 106 | . 97 9 Core Hits 42 | . 38 4 Critical Kills . | . . . Critical Parts Destroyed . | . . . Critical Strikes . | . . . Melee Attacks . | . . . Impact . | . . . Slashing . | . . . Piercing . | . . . Sneak Attacks . | . . . Combat Hostiles . | . . . Follow-up Attacks . | . . . Damage Inflicted 1696 | . 1498 198 Guns 1670 | . 1481 189 Cannons . | . . . Explosions . | . . . Melee . | . . . Ramming 26 | . 17 9 Kinetic 1670 | . 1481 189 Thermal . | . . . Explosive . | . . . Electromagnetic . | . . . Impact . | . . . Slashing . | . . . Piercing . | . . . Highest Corruption . | . . . Average Corruption . | . . . Corruption Purged . | . . . Corruption Blocked . | . . . Overload Shots . | . . . Overflow Damage . | . . . Projectiles . | . . . Explosions . | . . . Melee . | . . . Knockbacks . | . . . Impact . | . . . Kinetic . | . . . Secondary . | . . . Self-Inflicted Damage 4 | . . 4 Shots . | . . . Rammed 6 | . 1 5 Targets Rammed 10 | . 5 5 Kicked 4 | . 4 . Crushed . | . . . Highest Temperature 109 | . 89 109 Average Temperature 29 | . 25 58 Received Heat Transfer 699 | . 525 174 Siege Activations . | . . . Robots Corrupted . | . . . Combat Hostiles . | . . . Parts Fried . | . . . Impact Corruptions . | . . . Robots Melted . | . . . Combat Hostiles . | . . . Parts Melted . | . . . Heat Transferred . | . . . Parts Sabotaged . | . . . Parts Stolen . | . . . Parts Stripped . | . . . Power Chain Reactions . | . . . Alert | -11 -10 -10 ------- Run | Yrd Mat Min Peak Influence 352 | . 352 23 Initial 23 | . . 23 Average 131 | . 143 10 Maximum Alert Level 1 | . 1 . Low Security (%) 71 | 100 68 100 Level 1 28 | . 31 . Level 2 . | . . . Level 3 . | . . . Level 4 . | . . . Level 5 . | . . . High Security . | . . . Max Security . | . . . Squads Dispatched 6 | . 6 . Investigation 4 | . 4 . Extermination . | . . . Reinforcement 2 | . 2 . Assault . | . . . Garrison . | . . . Intercept . | . . . Searches Triggered . | . . . Construction Impeded . | . . . Haulers Reinforced . | . . . Active Scanning Responses . | . . . Cargo Convoy Interrupts . | . . . Stealth | -11 -10 -10 --------- Run | Yrd Mat Min Distress Signals 1 | . 1 . Communications Jammed . | . . . Distress Signals . | . . . Times Spotted 34 | . 27 7 Peak Tracking Total 7 | . 6 7 Tactical Retreats 1 | . 1 . Traps | -11 -10 -10 ------- Run | Yrd Mat Min Traps Triggered 4 | . 4 . Indirectly . | . . . Trap Hack Attempts . | . . . Triggered . | . . . Disarmed . | . . . Reprogrammed . | . . . Reused . | . . . Traps Extracted . | . . . Installed . | . . . Triggered . | . . . Machines | -11 -10 -10 ---------- Run | Yrd Mat Min Machines Disabled . | . . . Max in Single Turn . | . . . Machines Repaired . | . . . Machines Dismantled . | . . . Machines Sabotaged . | . . . Overloaded Fab Kills . | . . . Hacking | -11 -10 -10 --------- Run | Yrd Mat Min Machines Accessed 4 | . 4 . Terminals 4 | . 4 . Fabricators . | . . . Repair Stations . | . . . Recycling Units . | . . . Scanalyzers . | . . . Garrison Access . | . . . Total Hacks 11 | . 11 . Successful 7 | . 7 . Failed 4 | . 4 . Catastrophic 1 | . 1 . Database Lockouts . | . . . Manual 4 | . 4 . Terminals 11 | . 11 . Fabricators . | . . . Repair Stations . | . . . Recycling Units . | . . . Scanalyzers . | . . . Garrison Access . | . . . Terminal Hacks 4 | . 4 . Alert Level 1 | . 1 . Dispatch Records 1 | . 1 . Security Status 2 | . 2 . Fabricator Hacks . | . . . Repair Station Hacks . | . . . Recycling Unit Hacks . | . . . Scanalyzer . | . . . Garrison Access Hacks . | . . . Unauthorized Hacks 3 | . 3 . Terminals 3 | . 3 . Botnet 3 | . 3 . Fabricators . | . . . Repair Stations . | . . . Recycling Units . | . . . Scanalyzers . | . . . Garrison Access . | . . . Data Cores Recovered . | . . . Used . | . . . Hacking Detections 3 | . 3 . Full Trace Events 2 | . 2 . Feedback Events . | . . . Feedback Blocked . | . . . Robot Schematics Acquired . | . . . Robots Built . | . . . Authchips . | . . . Time . | . . . Total Robot Build Rating . | . . . Part Schematics Acquired . | . . . Parts Built . | . . . Authchips . | . . . Time . | . . . Total Part Build Rating . | . . . Parts Repaired . | . . . Time . | . . . Parts Recycled . | . . . Recycled Matter . | . . . Retrieved Matter . | . . . Retrieved Components . | . . . Parts Scanalyzed . | . . . Part Schematics Acquired . | . . . Parts Damaged . | . . . Bothacking | -11 -10 -10 ------------ Run | Yrd Mat Min Used RIF Installer . | . . . Robots Hacked . | . . . Non-combat . | . . . Combat . | . . . Robot Hacks Applied . | . . . Relay Couplers Released . | . . . Fabnet Peak Effective % . | . . . Robots Rewired . | . . . Allies Hacked . | . . . Hacks Repelled . | . . . Allies | -11 -10 -10 -------- Run | Yrd Mat Min Total Allies . | . . . Largest Group . | . . . Highest-Rated Group . | . . . Highest-Rated Ally . | . . . Total Orders . | . . . Ally Attacks . | . . . Total Damage . | . . . Kills . | . . . Allies Corrupted . | . . . Allies Melted . | . . . Intel | -11 -10 -10 ------- Run | Yrd Mat Min Robot Analysis Total . | . . . Derelict Logs Recovered . | . . . Drone Launches . | . . . Drone Recoveries . | . . . Exploration | -11 -10 -10 ------------- Run | Yrd Mat Min Turns Passed 1485 | 87 1351 47 Spaces Moved 931 | 48 863 20 Core 6 | 2 4 . Treads 217 | 46 171 . Legs 688 | . 688 . Wheels 20 | . . 20 Hover . | . . . Flight . | . . . Fastest Speed 50 | 50 120 100 Average Speed 129 | 155 128 100 Slowest Speed 190 | 160 190 100 Overloaded Moves . | . . . Propulsion Burnouts . | . . . Robots Hopped . | . . . Cave-ins Triggered . | . . . Exploration Rate (%) 36 | 4 98 8 Regions Visited 2 Branch Regions 1 Pre-discovered Areas . | . . . Known Exits Taken . | . . . Unknown Exits Taken 2 | 1 1 . Scrap Searched . | . . . Spaces Dug . | . . . Terrain Destroyed . | . . . Melee . | . . . Projectile . | . . . AOE . | . . . Terrain Rammed . | . . . Walls Destroyed . | . . . Machines Disabled . | . . . Actions | -11 -10 -10 --------- Run | Yrd Mat Min Total 1072 | 58 979 35 Wait 11 | . 11 . Move 929 | 47 862 20 Hop . | . . . Pick Up 8 | 3 5 . Fast Attach 19 | 7 12 . Attach 4 | . 2 2 Detach . | . . . Swap . | . . . Drop 5 | 1 4 . Fire 86 | . 78 8 Melee . | . . . Ram 5 | . . 5 Kick 4 | . 4 . Crush 1 | . 1 . Escape Stasis . | . . . Rewire . | . . . Trap . | . . . Miscellaneous . | . . . Route ------- -11/Scrapyard -10/Materials (discovered 5 exits: [*Mat x3] / [*Min x2]) -10/Mines History --------- Turn | Location | Event 2 | -11/Scrapyard | Met Revision 17 18 | -11/Scrapyard | Discovered new exit (range 16) 88 | -11/Scrapyard | Entered Materials 304 | -10/Materials | Build established: Mutant 345 | -10/Materials | Discovered new exit (range 15) 557 | -10/Materials | Lost 5 parts (1p2n2w) 654 | -10/Materials | Discovered new exit (range 12) 711 | -10/Materials | Discovered new exit (range 15) 728 | -10/Materials | Discovered new exit (range 13) 952 | -10/Materials | Discovered new exit (range 5) 1288 | -10/Materials | Derelicts attacked the area 1439 | -10/Materials | Entered Mines 1448 | -10/Mines | Core integrity fell below 50% 1470 | -10/Mines | Core integrity fell below 20% 1486 | -10/Mines | Destroyed by S-10 Pest with Light Assault Rifle Last Messages --------------- 01431_ An alarm sounds. 01431_ ALERT: Alarm triggered, dispatching investigation squad. 01435_ U-05 Engineer lays Concrete. 01435_ Aluminum Leg destroyed. 01436_ U-05 Engineer lays Concrete. LOCATION=UNKNOWN GOAL=ESCAPE Something is scanning the area. 01445_ Aluminum Leg destroyed. 01453_ Autogun destroyed. 01463_ Lgt. Nuclear Core destroyed. 01481_ Slammed into S-10 Pest. 01482_ Com. Wheel destroyed. 01483_ Slammed into S-10 Pest. 01484_ Com. Wheel destroyed. 01484_ Slammed into S-10 Pest. 01484_ Transport Network Coupler broken. 01484_ Destabilizing: Short circuit. 01485_ Slammed into S-10 Pest. Map ----- +----------------------------------------------------+ | ????????????????????????????????? | | ????????????????????????????????? | | ????????????????????????????????? | | ????????????????????????????????? | | ????????????????????????????????? | | ????????????????????????????????? | | ????????????????????????????????? | | ????????????????????????????????? | | ????????????????????????????????? | | ????????????????????????????????? | | ???????????????????????? ?????? | | ???????????????????????? ?????? | | ???????????????????????? ?????? | | ???????????????????????? ?????? | | ???????????????????????? ?????? | | ???????????????????????? ?????? | | ???????????????????????? ?????? | | ???????????????????????? ?????? | | ???????????????????????? ?????? | | ???????????????????????? ?????? | | ???????????????????????? ?????? | | ????????????????????????# #?????? | | ??????????????########### ##????? | | ??"" ######## #??? | | #### ####s#?????? | | # ###### #??# ####@#####?? | | ??????????# #??# ## s s #?? | | ??????????# #??# ##g""" #?? | | ??????????# #??# g """ #?? | | ??????????# #??#### """ #?? | | ??????????# #?????# """g #?? | | ??????????# #?????# #?? | | ??????????#######?????#########?? | | ????????????????????????????????? | | ????????????????????????????????? | | ????????????????????????????????? | | ????????????????????????????????? | | ????????????????????????????????? | | ????????????????????????????????? | | | | | | | | | | | | | | | | | | | | | | | +----------------------------------------------------+ Best States ------------- Heat Dissipation 25 Energy Generation 14 Energy Capacity 160 Matter Stores 300 Matter Capacity 300 Sight Range 16 Terrain Scan Density 10 Evasion (%) 55 Recoil Reduction 2 Item Schematics ----------------- None Robot Schematics ------------------ None Fabricated ------------ Nothing Alien Tech Used ----------------- None Achievements -------------- None Challenges ------------ None Game ------ Seed InsulationSubdwellerRailgun Manual? 0 Play Time 00:09:47 Cumulative 58.6 hours Start 2024.06.15 @ 04:06:29 End 2024.06.15 @ 04:15:57 Sessions 1 Manual Loads 0 Difficulty Rogue Special Mode None Game No. 33 Rogue 7 Adventurer 19 Explorer 7 Win Type - Total 2 Types 2/0/0/0/0/0/0/0/0 Lore% 39 Gallery% 51 Achievement% 43 Wizard Run 0 Options --------- Layout 2 ASCII 0 Keyboard 0 Movement Mouse Keybinds 0 Fullscreen 2 Font 20/SmallcapsGlow Map View 64x51 Zoom Use 0% Tactical HUD 1 Map Filters NONE Filters NONE Steam 1 RUN: 57e73abf-7395-40dc-a88b-4934295e5df0